bitfinex-derivatives/quotes_BNBF0:USTF0_20250510
["timestamp","ask_amount","ask_price","bid_price","bid_amount"]
[1746850031280,1.93745811,661.32,659.65,0.941]
[1746850031680,0.24867465,661.07,659.65,0.941]
[1746850032174,0.24867465,661.06,659.65,0.941]
[1746850032379,1.93745811,661.89,659.65,0.941]
[1746850032380,0.24867465,661.05,659.65,0.941]
[1746850032679,0.24867465,661.04,659.65,0.941]
[1746850032981,0.24867465,661.03,659.65,0.941]
[1746850033180,0.24867465,661.03,659.67,0.30318189]
[1746850033380,0.24867465,661.02,659.67,0.30318189]
[1746850033576,0.24867465,661.01,659.67,0.30318189]
[1746850034076,0.24867465,661.0,659.67,0.30318189]
[1746850034681,0.26353155,660.99,659.67,0.30318189]
[1746850035081,0.5122062,660.99,659.67,0.30318189]
[1746850035382,0.24867465,660.98,659.67,0.30318189]
[1746850035682,0.24867465,660.97,659.67,0.30318189]
[1746850035981,0.24867465,660.96,659.67,0.30318189]
[1746850036383,0.24867465,660.95,659.67,0.30318189]
[1746850036784,0.24867465,660.94,659.67,0.30318189]
[1746850037084,0.24867465,660.93,659.67,0.30318189]
[1746850037585,0.24867465,660.92,659.67,0.30318189]
[1746850037787,0.26352556,660.92,659.67,0.30318189]
[1746850038081,0.24867465,660.91,659.67,0.30318189]
[1746850040691,0.24867465,662.33,659.67,0.30318189]
[1746850040890,0.30202355,662.2,659.67,0.30318189]
[1746850041289,0.24867465,662.19,659.67,0.30318189]
[1746850041588,0.51215432,662.19,659.67,0.30318189]
[1746850041793,0.24867465,662.18,659.67,0.30318189]
[1746850042090,0.24867465,662.17,659.67,0.30318189]
[1746850042284,1.93745811,662.05,659.67,0.30318189]
[1746850042690,0.24867465,662.04,659.67,0.30318189]
[1746850042987,0.24867465,662.03,659.67,0.30318189]
[1746850043591,0.24867465,662.02,659.67,0.30318189]
[1746850044092,0.24867465,662.01,659.67,0.30318189]
[1746850044394,0.24867465,662.0,659.67,0.30318189]
[1746850044594,0.51215033,662.0,659.67,0.30318189]
[1746850044793,0.24867465,661.99,659.67,0.30318189]
[1746850044995,1.93745811,661.64,659.67,0.30318189]
[1746850045493,0.24867465,661.63,659.67,0.30318189]
[1746850045990,0.24867465,661.62,659.67,0.30318189]
[1746850046393,0.24867465,661.61,659.67,0.30318189]
[1746850046694,0.24867465,661.6,659.67,0.30318189]
[1746850046993,0.24867465,661.59,659.67,0.30318189]
[1746850047592,0.24867465,661.58,659.67,0.30318189]
[1746850047796,0.24867465,661.57,659.67,0.30318189]
[1746850048196,0.24867465,661.56,659.67,0.30318189]
[1746850048499,0.24867465,661.55,659.67,0.30318189]
[1746850048698,0.24867465,661.55,659.68,0.94]
[1746850048895,0.24867465,661.54,659.68,0.94]
[1746850049093,0.24867465,661.53,659.68,0.94]
[1746850049493,0.24867465,661.52,659.68,0.94]
[1746850049692,0.51217128,661.52,659.68,0.94]
[1746850049897,0.24867465,661.51,659.68,0.94]
[1746850050194,0.24867465,661.51,659.7,0.3031681]
[1746850051200,0.24867465,661.51,659.71,0.822]
[1746850051395,0.24867465,661.5,659.71,0.822]
[1746850052002,0.24867465,661.5,659.73,0.30315432]
[1746850052201,0.24867465,661.49,659.73,0.30315432]
[1746850052502,0.24867465,661.51,659.73,0.30315432]
[1746850053504,0.24867465,661.5,659.73,0.30315432]
[1746850053905,0.24867465,661.49,659.73,0.30315432]
[1746850054097,0.24867465,661.49,659.74,0.736]
[1746850054404,0.24867465,661.48,659.74,0.736]
[1746850055001,0.24867465,661.48,659.75,0.30314513]
[1746850055204,0.30236144,661.46,659.75,0.30314513]
[1746850055704,0.24867465,661.45,659.75,0.30314513]
[1746850056004,0.30237515,661.43,659.75,0.30314513]
[1746850056405,0.24860072,661.42,659.75,0.30314513]
[1746850056805,0.24860072,661.41,659.75,0.30314513]
[1746850057304,0.24860072,661.4,659.75,0.30314513]
[1746850057505,0.30239344,661.39,659.75,0.30314513]
[1746850058009,0.24860072,661.38,659.75,0.30314513]
[1746850058208,0.30240716,661.36,659.75,0.30314513]
[1746850058710,0.51217618,661.35,659.75,0.30314513]
[1746850059209,0.24860072,661.34,659.75,0.30314513]
[1746850059410,0.30242087,661.33,659.75,0.30314513]
[1746850059612,0.55102159,661.33,659.75,0.30314513]
[1746850059906,0.24860072,661.32,659.75,0.30314513]
[1746850060111,0.30243002,661.31,659.75,0.30314513]
[1746850060311,0.55103074,661.31,659.75,0.30314513]
[1746850060508,0.24860072,661.3,659.75,0.30314513]
[1746850061114,0.30243917,661.29,659.75,0.30314513]
[1746850061514,0.55103989,661.29,659.75,0.30314513]
[1746850061714,1.93745811,660.9,659.75,0.30314513]
[1746850062113,0.24860072,660.89,659.75,0.30314513]
[1746850062414,0.24860072,660.88,659.75,0.30314513]
[1746850062716,0.24860072,660.87,659.75,0.30314513]
[1746850063116,0.24860072,660.86,659.75,0.30314513]
[1746850063417,0.24860072,660.85,659.75,0.30314513]
[1746850063716,0.24860072,660.84,659.75,0.30314513]
[1746850064213,0.24860072,660.83,659.75,0.30314513]
[1746850064619,0.24860072,660.91,659.75,0.30314513]
[1746850064819,0.26361539,660.82,659.75,0.30314513]
[1746850065016,0.24860072,660.91,659.75,0.30314513]
[1746850065821,0.26362538,660.9,659.75,0.30314513]
[1746850066217,0.24860072,660.89,659.75,0.30314513]
[1746850067422,0.30263137,660.87,659.74,0.736]
[1746850067921,0.24860072,660.86,659.74,0.736]
[1746850068220,0.30264511,660.84,659.74,0.736]
[1746850069022,0.24860072,660.83,659.74,0.736]
[1746850069223,0.30265885,660.81,659.74,0.736]
[1746850069722,0.24860072,660.8,659.74,0.736]
[1746850070225,0.24860072,660.79,659.74,0.736]
[1746850070622,0.24860072,660.78,659.74,0.736]
[1746850070822,0.51240896,660.78,659.74,0.736]
[1746850071117,0.24860072,660.77,659.74,0.736]
[1746850071322,0.24860072,660.76,659.74,0.736]
[1746850072025,0.24860072,660.75,659.74,0.736]
[1746850072526,0.24860072,660.74,659.74,0.736]
[1746850072822,0.24860072,660.73,659.74,0.736]
[1746850073225,0.24860072,660.72,659.74,0.736]
[1746850073625,0.24860072,660.71,659.74,0.736]
[1746850074025,0.24860072,660.7,659.74,0.736]
[1746850074426,0.24860072,660.69,659.74,0.736]
[1746850074723,0.24860072,660.68,659.71,0.34478449]
[1746850074925,0.24860072,660.68,657.72,0.2639463]
[1746850075119,0.24860072,660.68,658.02,0.30394212]
[1746850075322,0.24860072,660.67,658.02,0.30394212]
[1746850075521,0.30278257,660.54,658.02,0.30394212]
[1746850076225,0.24860072,660.53,658.02,0.30394212]
[1746850076625,0.24860072,660.52,658.02,0.30394212]
[1746850077125,0.24860072,660.51,658.02,0.30394212]
[1746850077426,0.30285134,660.39,658.02,0.30394212]
[1746850077623,1.93745811,660.31,658.02,0.30394212]
[1746850077824,0.24860072,660.3,658.02,0.30394212]
[1746850078127,0.30294309,660.19,658.02,0.30394212]
[1746850078620,0.24860072,660.18,658.02,0.30394212]
[1746850078821,0.24860072,660.17,658.02,0.30394212]
[1746850079025,0.24860072,660.17,658.03,0.819]
[1746850079426,0.24860072,660.16,658.03,0.819]
[1746850079726,0.24860072,660.15,658.03,0.819]
[1746850080021,0.24860072,660.14,658.03,0.819]
[1746850080423,0.24860072,660.13,658.04,0.879]
[1746850080727,0.24860072,660.12,658.04,0.879]
[1746850081027,0.24860072,660.11,658.04,0.879]
[1746850081328,0.24860072,660.1,658.04,0.879]
[1746850081731,0.24860072,660.09,658.04,0.879]
[1746850082333,0.30303489,659.99,658.05,0.30392827]
[1746850082933,0.24860072,659.98,658.05,0.30392827]
[1746850083333,0.24860072,659.97,658.05,0.30392827]
[1746850083535,0.30304866,659.96,658.05,0.30392827]
[1746850083734,0.55164938,659.96,658.05,0.30392827]
[1746850083934,0.24860072,659.95,658.05,0.30392827]
[1746850084134,0.30306244,659.93,658.05,0.30392827]
[1746850084635,0.24860072,659.92,658.05,0.30392827]
[1746850084834,0.30307163,659.91,658.05,0.30392827]
[1746850085134,0.24860072,659.9,658.05,0.30392827]
[1746850085435,0.30308081,659.89,658.05,0.30392827]
[1746850085631,0.55168153,659.89,658.05,0.30392827]
[1746850085831,0.24860072,659.88,658.05,0.30392827]
[1746850086032,0.55168612,659.88,658.05,0.30392827]
[1746850086235,0.24860072,659.87,658.05,0.30392827]
[1746850086829,0.24860072,659.86,658.05,0.30392827]
[1746850087133,0.24860072,659.85,658.05,0.30392827]
[1746850087537,0.24860072,659.84,658.05,0.30392827]
[1746850087835,0.24860072,659.83,658.05,0.30392827]
[1746850088336,0.24860072,659.82,658.05,0.30392827]
[1746850088740,0.24860072,659.81,658.05,0.30392827]
[1746850089038,0.24860072,659.8,658.05,0.30392827]
[1746850089437,0.24860072,659.83,658.05,0.30392827]
[1746850091137,0.24860072,659.82,658.05,0.30392827]
[1746850091538,0.24860072,659.83,658.05,0.30392827]
[1746850091839,0.24860072,659.82,658.05,0.30392827]
[1746850092139,0.26411958,659.84,658.05,0.30392827]
[1746850092343,0.247825,659.83,658.05,0.30392827]
[1746850092642,0.247825,659.82,658.05,0.30392827]
[1746850092939,0.247825,659.83,658.05,0.30392827]
[1746850094740,0.247825,659.82,658.05,0.30392827]
[1746850095143,0.247825,659.81,658.05,0.30392827]
[1746850095440,0.247825,659.8,658.05,0.30392827]
[1746850095841,0.247825,659.83,658.05,0.30392827]
[1746850097640,0.247825,659.87,658.05,0.30392827]
[1746850097838,0.26409954,659.82,658.05,0.30392827]
[1746850098240,0.247825,659.81,658.05,0.30392827]
[1746850098741,0.247825,659.8,658.05,0.30392827]
[1746850099341,0.247825,659.79,658.05,0.30392827]
[1746850099737,0.26409954,659.82,658.05,0.30392827]
[1746850099738,0.247825,659.78,658.05,0.30392827]
[1746850100343,0.247825,659.77,658.05,0.30392827]
[1746850100638,0.247825,659.76,658.05,0.30392827]
[1746850101035,0.247825,659.75,658.05,0.30392827]
[1746850101842,0.247825,659.76,658.05,0.30392827]
[1746850103444,0.247825,659.87,658.05,0.30392827]
[1746850103644,0.247825,659.87,658.06,0.93926184]
[1746850103841,0.26404543,659.75,658.07,0.93926184]
[1746850104047,0.247825,659.87,658.09,0.30390979]
[1746850104347,0.247825,659.74,658.1,0.93948609]
[1746850104547,0.247825,659.86,658.12,0.30389594]
[1746850104847,0.247825,659.87,658.13,1.21859297]
[1746850105046,0.247825,659.87,658.15,0.30388209]
[1746850105448,0.2640264,659.86,658.16,1.21883051]
[1746850105647,0.2640264,659.86,658.18,0.30386824]
[1746850106051,0.247825,659.85,658.18,0.30386824]
[1746850106648,0.3030854,659.88,658.18,0.30386824]
[1746850106649,0.247825,659.87,658.18,0.30386824]
[1746850106852,0.26406447,659.84,658.18,0.30386824]
[1746850107449,0.247825,659.83,658.18,0.30386824]
[1746850108545,0.26406447,659.84,658.18,0.30386824]
[1746850108852,0.24772657,659.83,658.18,0.30386824]
[1746850109747,0.26406647,659.82,658.18,0.30386824]
[1746850110247,0.24772657,659.81,658.18,0.30386824]
[1746850112755,0.26406647,659.8,658.18,0.30386824]
[1746850113456,0.24772657,659.79,658.18,0.30386824]
[1746850113854,0.24772657,659.79,658.19,0.94539734]
[1746850114156,0.24772657,659.79,658.18,0.30386824]
[1746850114558,0.24772657,659.79,658.19,0.94589406]
[1746850114759,0.24772657,659.79,658.18,0.30386824]
[1746850114760,0.24772657,659.79,658.21,0.30385439]
[1746850115261,0.24772657,659.79,658.22,0.94605413]
[1746850115555,0.24772657,659.79,658.24,0.30384054]
[1746850116560,0.24772657,659.79,658.25,0.94734854]
[1746850116760,0.24772657,659.79,658.27,0.30382669]
[1746850117759,0.24772657,659.79,658.28,0.94825404]
[1746850117960,0.24772657,659.79,658.3,0.30381285]
[1746850118757,0.26407248,659.78,658.3,0.30381285]
[1746850119260,0.24772657,659.77,658.3,0.30381285]
[1746850119860,0.26407248,659.78,658.3,0.30381285]
[1746850120062,0.26407248,659.78,658.31,0.643]
[1746850120264,0.24747598,659.77,658.33,0.303799]
[1746850121767,0.26406848,659.76,658.33,0.303799]
[1746850122267,0.24747598,659.75,658.33,0.303799]
[1746850122968,0.24747598,659.74,658.33,0.303799]
[1746850123467,0.24747598,659.73,658.33,0.303799]
[1746850123667,0.26406848,659.76,658.33,0.303799]
[1746850124065,0.24729704,659.75,658.33,0.303799]
[1746850124568,0.24729704,659.74,658.33,0.303799]
[1746850124866,0.26406848,659.74,658.33,0.303799]
[1746850125066,0.24729704,659.73,658.33,0.303799]
[1746850127667,0.24729704,659.87,658.33,0.303799]
[1746850127860,0.2640805,659.72,658.33,0.303799]
[1746850128061,0.24729704,659.86,658.33,0.303799]
[1746850128369,0.24729704,659.85,658.33,0.303799]
[1746850128667,0.24729704,659.84,658.33,0.303799]
[1746850128867,0.51137754,659.84,658.33,0.303799]
[1746850129068,0.24729704,659.83,658.33,0.303799]
[1746850129369,0.24729704,659.82,658.33,0.303799]
[1746850129668,0.2640805,659.84,658.33,0.303799]
[1746850130071,0.24728996,659.83,658.33,0.303799]
[1746850130264,0.24728996,659.82,658.33,0.303799]
[1746850130670,0.24728996,659.81,658.33,0.303799]
[1746850131071,0.24728996,659.8,658.33,0.303799]
[1746850131367,0.24728996,659.79,658.33,0.303799]
[1746850131671,0.24728996,659.78,658.33,0.303799]
[1746850131873,0.24728996,659.77,658.33,0.303799]
[1746850132575,0.24728996,659.76,658.33,0.303799]
[1746850132972,0.24728996,659.75,658.33,0.303799]
[1746850133274,0.24728996,659.74,658.33,0.303799]
[1746850133769,0.24728996,659.73,658.33,0.303799]
[1746850134375,0.24728996,659.72,658.33,0.303799]
[1746850134773,0.24728996,659.83,658.33,0.303799]
[1746850136676,0.26409553,659.82,658.33,0.303799]
[1746850137269,0.24728996,659.81,658.33,0.303799]
[1746850137672,0.24728996,659.81,658.34,0.753]
[1746850138277,0.24728996,659.8,658.34,0.753]
[1746850138577,0.26409553,659.82,658.34,0.753]
[1746850138877,0.24718853,659.81,658.34,0.753]
[1746850139176,0.26409553,659.82,658.34,0.753]
[1746850139177,0.24718853,659.8,658.34,0.753]
[1746850139677,0.24718853,659.79,658.34,0.753]
[1746850139877,0.5113031,659.79,658.34,0.753]
[1746850140080,0.24718853,659.78,658.34,0.753]
[1746850140576,0.24718853,659.77,658.34,0.753]
[1746850140976,0.24718853,659.76,658.34,0.753]
[1746850141276,0.24718853,659.75,658.34,0.753]
[1746850141676,0.24718853,659.74,658.34,0.753]
[1746850142075,0.24718853,659.73,658.34,0.753]
[1746850142678,0.24718853,659.78,658.34,0.753]
[1746850145575,0.24718853,659.87,658.34,0.753]
[1746850145879,0.24718853,659.86,658.34,0.753]
[1746850146180,0.24718853,659.85,658.34,0.753]
[1746850146474,0.24718853,659.84,658.34,0.753]
[1746850146776,0.24718853,659.83,658.34,0.753]
[1746850146980,0.24718853,659.82,658.34,0.753]
[1746850147382,0.24718853,659.81,658.34,0.753]
[1746850147780,0.24718853,659.81,658.35,0.596]
[1746850147981,0.24718853,659.8,658.35,0.596]
[1746850148182,0.24718853,659.79,658.35,0.596]
[1746850148580,0.26413863,659.78,658.35,0.596]
[1746850148779,0.51132716,659.78,658.35,0.596]
[1746850148984,0.24718853,659.77,658.35,0.596]
[1746850149282,0.24718853,659.76,658.35,0.596]
[1746850149682,0.24718853,659.75,658.35,0.596]
[1746850150083,0.24718853,659.74,658.35,0.596]
[1746850150384,0.24718853,659.73,658.35,0.596]
[1746850150883,0.24718853,659.72,658.35,0.596]
[1746850151380,0.24718853,659.71,658.35,0.596]
[1746850151983,0.24718853,659.7,658.35,0.596]
[1746850152287,0.24718853,659.69,658.35,0.596]
[1746850152584,0.24718853,659.68,658.35,0.596]
[1746850153084,0.24718853,659.67,658.35,0.596]
[1746850153784,0.24718853,659.77,658.35,0.596]
[1746850154580,0.24718853,659.87,658.35,0.596]
[1746850154785,0.26413863,659.76,658.35,0.596]
[1746850155086,0.24718853,659.86,658.35,0.596]
[1746850155482,0.24718853,659.85,658.35,0.596]
[1746850155684,0.51132716,659.85,658.35,0.596]
[1746850155883,0.26413863,659.85,658.35,0.596]
[1746850156284,0.24718853,659.84,658.35,0.596]
[1746850156585,0.24718853,659.83,658.35,0.596]
[1746850156985,0.24718853,659.82,658.35,0.596]
[1746850157291,0.24718853,659.81,658.35,0.596]
[1746850157686,0.51132716,659.81,658.35,0.596]
[1746850157885,0.24718853,659.8,658.35,0.596]
[1746850158089,0.24718853,659.79,658.35,0.596]
[1746850158501,0.24718853,659.78,658.35,0.596]
[1746850159003,0.24718853,659.77,658.35,0.596]
[1746850159401,0.24718853,659.76,658.35,0.596]
[1746850159801,0.24718853,659.75,658.35,0.596]
[1746850160000,0.24718853,659.75,658.36,0.769]
[1746850160197,0.24718853,659.74,658.36,0.769]
[1746850160601,0.24718853,659.73,658.36,0.769]
[1746850161002,0.24718853,659.72,658.36,0.769]
[1746850161305,0.24718853,659.71,658.36,0.769]
[1746850162100,0.24718853,659.7,658.36,0.769]
[1746850162600,0.24718853,659.69,658.36,0.769]
[1746850163001,0.24718853,659.68,658.36,0.769]
[1746850163405,0.24718853,659.67,658.36,0.769]
[1746850163597,0.24718853,659.66,658.36,0.769]
[1746850164209,0.24718853,659.65,658.36,0.769]
[1746850164507,1.93745811,659.52,658.36,0.769]
[1746850164805,0.24718853,659.51,658.36,0.769]
[1746850165210,0.24718853,659.5,658.36,0.769]
[1746850165513,0.24718853,659.49,658.36,0.769]
[1746850165914,0.24718853,659.48,658.36,0.769]
[1746850166114,0.24718853,659.48,658.37,0.705]
[1746850166414,0.24718853,659.47,658.37,0.705]
[1746850166714,0.24718853,659.46,658.37,0.705]
[1746850167111,0.24718853,659.45,658.37,0.705]
[1746850167415,1.93745811,659.48,658.37,0.705]
[1746850167710,0.26417673,659.44,658.37,0.705]
[1746850168314,0.24681775,659.43,658.37,0.705]
[1746850168616,0.24681775,659.42,658.37,0.705]
[1746850168818,1.93745811,659.4,658.37,0.705]
[1746850169414,0.24681775,659.39,658.37,0.705]
[1746850170414,0.24681775,659.38,658.37,0.705]
[1746850171008,0.24681775,659.37,658.37,0.705]
[1746850171213,1.93745811,659.32,658.37,0.705]
[1746850171717,0.24681775,659.31,658.37,0.705]
[1746850172217,0.24681775,659.3,658.37,0.705]
[1746850172617,0.24681775,659.29,658.37,0.705]
[1746850172914,1.93745811,659.32,658.37,0.705]
[1746850173115,1.93745811,659.29,658.37,0.705]
[1746850173820,0.24663939,659.28,658.37,0.705]
[1746850174727,1.93745811,659.29,658.37,0.705]
[1746850175123,0.24664146,659.28,658.37,0.705]
[1746850175728,0.2642359,659.27,658.37,0.705]
[1746850176029,0.24664146,659.26,658.37,0.705]
[1746850177732,0.24664146,659.26,658.38,0.817]
[1746850178730,0.2642359,659.25,658.38,0.817]
[1746850179435,0.24664146,659.24,658.38,0.817]
[1746850179635,0.2642359,659.25,658.38,0.817]
[1746850179938,0.24662811,659.24,658.38,0.817]
[1746850181637,0.26418776,659.23,658.38,0.817]
[1746850182035,0.24662811,659.22,658.38,0.817]
[1746850184638,0.26420581,659.21,658.38,0.817]
[1746850184839,0.24662811,659.2,658.38,0.817]
[1746850190841,0.26419979,659.19,658.38,0.817]
[1746850191244,0.24662811,659.18,658.38,0.817]
[1746850193646,0.24662811,659.6,658.38,0.817]
[1746850193849,0.26419879,659.17,658.38,0.817]
[1746850194043,0.24662811,659.16,658.38,0.817]
[1746850194446,0.24662811,659.58,658.38,0.817]
[1746850194646,0.30322786,659.57,658.38,0.817]
[1746850194945,0.56742865,659.57,658.38,0.817]
[1746850195748,0.24662811,659.15,658.38,0.817]
[1746850195943,0.24662811,659.56,658.38,0.817]
[1746850196347,0.30324165,659.54,658.38,0.817]
[1746850196749,0.24662811,659.53,658.39,0.735]
[1746850196948,0.51084495,659.53,658.39,0.735]
[1746850197148,0.24662811,659.52,658.39,0.735]
[1746850197550,0.24662811,659.51,658.39,0.735]
[1746850197748,0.54988355,659.51,658.39,0.735]
[1746850197950,0.24662811,659.5,658.39,0.735]
[1746850198251,0.24662811,659.49,658.39,0.735]
[1746850198752,1.93745811,659.45,658.39,0.735]
[1746850199152,0.24662811,659.44,658.39,0.735]
[1746850199651,0.51084595,659.43,658.39,0.735]
[1746850199851,0.30329683,659.42,658.39,0.735]
[1746850200152,0.24662811,659.41,658.39,0.735]
[1746850200554,0.24662811,659.4,658.39,0.735]
[1746850200855,0.24662811,659.39,658.39,0.735]
[1746850201153,0.24662811,659.38,658.39,0.735]
[1746850201354,1.93745811,659.37,658.39,0.735]
[1746850201654,2.18408622,659.37,658.39,0.735]
[1746850201852,0.24662811,659.36,658.39,0.735]
[1746850202254,0.24662811,659.35,658.39,0.735]
[1746850202648,0.24662811,659.34,658.39,0.735]
[1746850203253,0.24662811,659.33,658.39,0.735]
[1746850203657,0.24662811,659.32,658.39,0.735]
[1746850203849,0.24662811,659.31,658.39,0.735]
[1746850204257,0.24662811,659.3,658.39,0.735]
[1746850204649,0.24662811,659.29,658.39,0.735]
[1746850205154,0.24662811,659.28,658.39,0.735]
[1746850205552,0.51085398,659.27,658.39,0.735]
[1746850206055,0.24662811,659.26,658.39,0.735]
[1746850206455,0.24662811,659.25,658.39,0.735]
[1746850206755,0.24662811,659.24,658.39,0.735]
[1746850207255,0.24662811,659.23,658.39,0.735]
[1746850207551,0.24662811,659.22,658.39,0.735]
[1746850207956,0.24662811,659.21,658.39,0.735]
[1746850208757,0.26422587,659.2,658.39,0.735]
[1746850208960,0.51085398,659.2,658.39,0.735]
[1746850209359,0.24662811,659.19,658.39,0.735]
[1746850210161,1.93745811,659.15,658.39,0.735]
[1746850210561,0.24662811,659.14,658.39,0.735]
[1746850211662,0.26421383,659.13,658.39,0.735]
[1746850212158,0.24662811,659.12,658.39,0.735]
[1746850214560,0.24662811,659.16,658.39,0.735]
[1746850214965,0.26421985,659.11,658.39,0.735]
[1746850215367,0.24662811,659.1,658.39,0.735]
[1746850220769,0.26414564,659.09,658.39,0.735]
[1746850221365,0.24662811,659.08,658.39,0.735]
[1746850223273,0.24662811,659.08,658.4,0.3037667]
[1746850223671,0.26410956,659.07,658.41,0.688]
[1746850224273,0.24662811,659.06,658.41,0.688]
[1746850225074,0.24662811,659.06,658.42,0.30375748]
[1746850229778,0.24662811,659.87,658.42,0.30375748]
[1746850230077,0.26406848,659.15,658.42,0.30375748]
[1746850230275,0.24662811,659.86,658.42,0.30375748]
[1746850230473,0.24662811,659.14,658.42,0.30375748]
[1746850230879,0.24662811,659.87,658.42,0.30375748]
[1746850231078,0.26406848,659.15,658.42,0.30375748]
[1746850231574,0.24662811,659.86,658.42,0.30375748]
[1746850231779,0.24662811,659.14,658.42,0.30375748]
[1746850232078,0.24662811,659.21,658.42,0.30375748]
[1746850232479,0.24662811,659.87,658.42,0.30375748]
[1746850232878,0.51066854,659.86,658.42,0.30375748]
[1746850233479,0.24662811,659.85,658.42,0.30375748]
[1746850233778,0.24662811,659.84,658.42,0.30375748]
[1746850234182,0.24662811,659.83,658.42,0.30375748]
[1746850234376,0.24662811,659.82,658.42,0.30375748]
[1746850234680,0.24662811,659.85,658.42,0.30375748]
[1746850235879,0.51069659,659.84,658.42,0.30375748]
[1746850236174,0.24662811,659.83,658.42,0.30375748]
[1746850237076,0.24662811,659.82,658.42,0.30375748]
[1746850237276,0.54974108,659.82,658.42,0.30375748]
[1746850237775,0.24662811,659.81,658.42,0.30375748]
[1746850238375,0.24662811,659.8,658.42,0.30375748]
[1746850238575,0.24662811,659.79,658.42,0.30375748]
[1746850238881,0.24662811,659.81,658.42,0.30375748]
[1746850239280,0.24662811,659.8,658.42,0.30375748]
[1746850239679,0.24662811,659.79,658.42,0.30375748]
[1746850240180,0.24662811,659.78,658.42,0.30375748]
[1746850240382,0.24662811,659.77,658.42,0.30375748]
[1746850240682,0.24662811,659.76,658.42,0.30375748]
[1746850241582,0.24662811,659.75,658.42,0.30375748]
[1746850241778,0.24662811,659.75,658.43,0.693]
[1746850241983,0.24662811,659.74,658.43,0.693]
[1746850242284,0.24662811,659.73,658.43,0.693]
[1746850242677,0.24662811,659.72,658.43,0.693]
[1746850242881,0.24662811,659.71,658.43,0.693]
[1746850243184,0.24662811,659.81,658.43,0.693]
[1746850243484,0.24662811,659.8,658.43,0.693]
[1746850243783,0.24662811,659.79,658.43,0.693]
[1746850244284,0.24662811,659.78,658.43,0.693]
[1746850244485,0.24662811,659.77,658.43,0.693]
[1746850244784,0.24662811,659.76,658.43,0.693]
[1746850245084,0.24662811,659.75,658.43,0.693]
[1746850245484,0.24662811,659.74,658.43,0.693]
[1746850245885,0.24662811,659.73,658.43,0.693]
[1746850246079,0.51073466,659.73,658.43,0.693]
[1746850246282,0.24662811,659.72,658.43,0.693]
[1746850246585,0.26410655,659.73,658.43,0.693]
[1746850246983,0.2468593,659.72,658.43,0.693]
[1746850247286,0.26410655,659.73,658.43,0.693]
[1746850247485,0.30311297,659.82,658.43,0.693]
[1746850247686,0.24685976,659.72,658.43,0.693]
[1746850248081,0.24685976,659.71,658.43,0.693]
[1746850248484,0.24685976,659.7,658.43,0.693]
[1746850248887,0.24685976,659.69,658.43,0.693]
[1746850249487,0.24685976,659.8,658.43,0.693]
[1746850249687,0.30312675,659.79,658.43,1.462]
[1746850249985,0.24685976,659.78,658.43,1.462]
[1746850250382,0.5499957,659.77,658.43,1.462]
[1746850250586,0.30314053,659.76,658.43,1.462]
[1746850250886,0.81414994,659.76,658.43,1.462]
[1746850251086,0.24685976,659.75,658.43,1.462]
[1746850251387,0.30314972,659.74,658.43,1.462]
[1746850251581,0.55000948,659.74,658.43,1.462]
[1746850251788,1.93745811,659.71,658.43,1.462]
[1746850252287,0.24685976,659.7,658.43,1.462]
[1746850252589,0.55003246,659.69,658.43,1.462]
[1746850252987,0.55003705,659.68,658.43,1.462]
[1746850253183,0.30318189,659.67,658.43,1.462]
[1746850253388,0.55004165,659.67,658.43,1.462]
[1746850253588,0.24685976,659.66,658.43,1.462]
[1746850253783,0.30319108,659.65,658.43,1.462]
[1746850253988,0.55005084,659.65,658.43,1.462]
[1746850254288,0.24685976,659.64,658.43,1.462]
[1746850254483,1.93745811,659.61,658.43,1.462]
[1746850254686,0.30321406,659.6,658.43,1.462]
[1746850254982,0.55007382,659.6,658.43,1.462]
[1746850255187,0.24685976,659.59,658.43,1.462]
[1746850255386,0.55008302,659.58,658.43,1.462]
[1746850255587,0.30322786,659.57,658.43,1.462]
[1746850255786,0.55008762,659.57,658.43,1.462]
[1746850256187,0.24685976,659.56,658.43,1.462]
[1746850256389,0.55009681,659.55,658.43,1.462]
[1746850256590,0.30324165,659.54,658.43,1.462]
[1746850256890,0.81430321,659.54,658.43,1.462]
[1746850257090,0.24685976,659.53,658.43,1.462]